bitfinex-derivatives/quotes_SOLF0:USTF0_20220106
["timestamp","ask_amount","ask_price","bid_price","bid_amount"]
[1641488656376,14.07255173,150.6,150.57,4.68967843]
[1641488657978,15.02195329,150.61,150.54,27.66479]
[1641488659580,15.02195329,150.61,150.53,14.07255173]
[1641488659779,20.82695329,150.61,150.53,14.07255173]
[1641488659980,4.0,150.6,150.53,14.07255173]
[1641488660380,4.0,150.59,150.53,14.07255173]
[1641488661184,4.0,150.57,150.53,14.07255173]
[1641488661382,20.82695329,150.61,150.53,14.07255173]
[1641488661583,4.0,150.57,150.53,14.07255173]
[1641488662184,27.66479,150.56,150.53,14.07255173]
[1641488663986,31.66479,150.56,150.53,14.07255173]
[1641488664186,27.66479,150.56,150.53,14.07255173]
[1641488664788,33.25079,150.56,150.53,14.07255173]
[1641488667287,14.07490465,150.54,150.51,4.69163488]
[1641488668088,15.02951825,150.55,150.47,22.50026956]
[1641488669189,3.24525051,150.55,150.47,22.50026956]
[1641488670689,3.24525051,150.55,150.47,15.51800343]
[1641488679002,4.6805205,150.53,150.5,4.6805205]
[1641488680001,55.32958,150.56,150.47,15.51800343]
[1641488680201,55.32958,150.56,150.49,4.68053904]
[1641488680202,4.68053904,150.52,150.49,4.68053904]
[1641488681104,69.37114151,150.56,150.47,1.4454517]
[1641488684904,69.37114151,150.56,150.47,6.7924517]
[1641488685607,73.37114151,150.56,150.47,6.7924517]
[1641488685806,69.37114151,150.56,150.47,6.7924517]
[1641488686006,73.37114151,150.56,150.47,6.7924517]
[1641488686207,73.37114151,150.56,150.47,1.4454517]
[1641488686508,69.37114151,150.56,150.47,1.4454517]
[1641488686709,4.0,150.55,150.47,1.4454517]
[1641488686909,69.37114151,150.56,150.47,1.4454517]
[1641488686910,73.37114151,150.56,150.47,1.4454517]
[1641488687108,69.37114151,150.56,150.47,1.4454517]
[1641488687510,55.32958,150.56,150.47,1.4454517]
[1641488688310,55.32958,150.56,150.47,5.19809097]
[1641488689410,55.32958,150.56,150.47,3.75263927]
[1641488690812,55.32958,150.56,150.46,90.79439]
[1641488694412,59.32958,150.56,150.46,90.79439]
[1641488694612,55.32958,150.56,150.46,90.79439]
[1641488698016,59.32958,150.56,150.46,90.79439]
[1641488698520,9.308,150.58,150.46,63.1296]
[1641488698717,78.4633,150.59,150.46,63.1296]
[1641488698919,4.0,150.58,150.46,63.1296]
[1641488699119,27.66479,150.57,150.47,31.66479]
[1641488699320,27.66479,150.57,150.47,36.13079]
[1641488700021,27.66479,150.57,150.47,39.88312757]
[1641488701024,27.66479,150.57,150.47,35.88312757]
[1641488701222,4.0,150.55,150.47,31.41712757]
[1641488701421,4.0,150.55,150.47,3.75233757]
[1641488701622,37.80679,150.57,150.47,3.75233757]
[1641488702023,4.0,150.56,150.46,66.88193757]
[1641488702322,4.0,150.55,150.46,66.88193757]
[1641488702821,4.0,150.56,150.46,66.88193757]
[1641488703223,31.66479,150.53,150.46,3.75233757]
[1641488703423,4.0,150.51,150.46,3.75233757]
[1641488703626,4.0,150.51,150.42,71.90923757]
[1641488703826,65.6051,150.52,150.42,71.90923757]
[1641488704025,4.0,150.51,150.42,71.90923757]
[1641488704425,69.6051,150.52,150.42,3.75233757]
[1641488704625,4.0,150.51,150.42,3.75233757]
[1641488704826,69.6051,150.52,150.42,3.75233757]
[1641488705026,4.0,150.51,150.42,3.75233757]
[1641488705227,27.66479,150.48,150.42,3.75233757]
[1641488706129,27.66479,150.48,150.41,31.41712757]
[1641488708732,27.66479,150.48,150.41,27.66479]
[1641488709131,69.6051,150.52,150.4,62.76]
[1641488709531,27.66479,150.48,150.4,90.42479]
[1641488709730,27.66479,150.48,150.4,27.66479]
[1641488710131,27.66479,150.48,150.4,31.41869319]
[1641488712135,27.66479,150.51,150.41,4.0]
[1641488713136,27.66479,150.51,150.42,4.0]
[1641488713337,27.66479,150.51,150.4,42.42191773]
[1641488713635,4.0,150.47,150.4,31.41869319]
[1641488713837,6.202,150.47,150.4,31.41869319]
[1641488714438,10.202,150.47,150.4,31.41869319]
[1641488714636,6.202,150.47,150.4,27.66479]
[1641488715337,10.202,150.47,150.4,27.66479]
[1641488716039,4.0,150.46,150.4,27.66479]
[1641488716339,4.0,150.45,150.4,27.66479]
[1641488716639,4.0,150.46,150.4,27.66479]
[1641488717239,10.202,150.47,150.4,27.66479]
[1641488718342,4.0,150.46,150.4,27.66479]
[1641488718644,10.202,150.47,150.4,27.66479]
[1641488719042,6.202,150.47,150.4,27.66479]
[1641488719245,31.66479,150.48,150.4,27.66479]
[1641488719744,4.0,150.47,150.4,27.66479]
[1641488720548,31.66479,150.48,150.4,27.66479]
[1641488720748,27.66479,150.48,150.4,27.66479]
[1641488721849,4.0,150.47,150.4,27.66479]
[1641488722050,27.66479,150.48,150.4,27.66479]
[1641488722252,31.66479,150.48,150.4,27.66479]
[1641488722450,41.52479,150.48,150.4,27.66479]
[1641488723251,37.52479,150.48,150.4,27.66479]
[1641488723753,27.66479,150.51,150.4,27.66479]
[1641488723952,6.63944494,150.57,150.44,4.0]
[1641488724152,61.9984,150.7,150.44,6.961]
[1641488724352,4.0,150.61,150.5,6.63481953]
[1641488724553,4.0,150.63,150.5,6.63481953]
[1641488724953,4.0,150.63,150.48,72.8879]
[1641488725153,10.63658083,150.63,150.48,72.8879]
[1641488725853,27.66479,150.61,150.52,27.66479]
[1641488726453,31.66479,150.61,150.52,27.66479]
[1641488726858,31.66479,150.61,150.5,27.66479]
[1641488727257,4.0,150.6,150.48,66.7889]
[1641488727455,4.0,150.58,150.48,66.7889]
[1641488727655,4.0,150.57,150.48,66.7889]
[1641488727857,27.66479,150.55,150.48,66.7889]
[1641488728057,27.66479,150.55,150.46,6.63658083]
[1641488732058,27.66479,150.55,150.46,10.38884161]
[1641488733856,27.66479,150.55,150.46,3.75226078]
[1641488734557,27.66479,150.55,150.45,127.45418]
[1641488735959,63.9766,150.57,150.48,27.66479]
[1641488740265,63.9766,150.57,150.48,33.26479]
[1641488741968,63.9766,150.57,150.51,27.66479]
[1641488745077,27.66479,150.61,150.51,27.66479]
[1641488745480,27.66479,150.61,150.53,4.0]
[1641488745680,27.66479,150.61,150.53,7.054]
[1641488746079,27.66479,150.61,150.54,27.66479]
[1641488747984,93.97529,150.68,150.57,27.66479]
[1641488748182,93.97529,150.68,150.57,33.54379]
[1641488748584,93.97529,150.68,150.58,4.0]
[1641488748784,93.97529,150.68,150.57,37.54379]
[1641488749985,93.97529,150.68,150.6,27.66479]
[1641488750186,97.97529,150.68,150.6,27.66479]
[1641488750386,93.97529,150.68,150.6,27.66479]
[1641488755694,27.66479,150.68,150.6,27.66479]
[1641488765003,4.0,150.69,150.56,62.744]
[1641488765202,68.034,150.71,150.58,4.0]
[1641488765401,68.034,150.71,150.57,4.0]
[1641488766104,27.66479,150.68,150.58,27.66479]
[1641488767005,27.66479,150.68,150.58,31.66479]
[1641488767804,27.66479,150.68,150.58,27.66479]
[1641488768006,27.66479,150.68,150.58,31.66479]
[1641488768405,27.66479,150.68,150.58,27.66479]
[1641488770611,68.034,150.71,150.57,4.0]
[1641488772010,68.034,150.71,150.58,4.0]
[1641488772210,27.66479,150.68,150.6,27.66479]
[1641488773313,68.034,150.71,150.58,4.0]
[1641488774213,27.66479,150.68,150.6,27.66479]
[1641488778016,68.034,150.71,150.59,6.63086002]
[1641488778618,27.66479,150.68,150.6,27.66479]
[1641488782818,68.034,150.71,150.58,10.63107987]
[1641488783019,68.034,150.71,150.58,17.83207987]
[1641488783319,27.66479,150.68,150.6,27.66479]
[1641488783520,27.66479,150.68,150.6,31.66479]
[1641488783722,27.66479,150.7,150.63,4.0]
[1641488783920,64.7834,150.78,150.63,10.292]
[1641488784519,64.7834,150.78,150.63,6.292]
[1641488785321,27.66479,150.76,150.67,27.66479]
[1641488788724,27.66479,150.76,150.67,31.66479]
[1641488788924,27.66479,150.76,150.67,27.66479]
[1641488789625,27.66479,150.76,150.67,31.66479]
[1641488790124,27.66479,150.76,150.68,4.0]
[1641488790424,27.66479,150.76,150.68,10.219]
[1641488790624,64.7834,150.78,150.7,4.0]
[1641488790823,64.7834,150.78,150.71,4.0]
[1641488791225,16.50690524,150.85,150.71,4.0]
[1641488791429,27.66479,150.82,150.74,27.66479]
[1641488791628,27.66479,150.82,150.74,32.94179]
[1641488792833,67.9693,150.84,150.74,32.94179]
[1641488793029,67.9693,150.84,150.75,4.0]
[1641488793230,67.9693,150.84,150.74,32.94179]
[1641488793429,67.9693,150.84,150.78,27.66479]
[1641488793630,0.08,150.84,150.78,32.97179]
[1641488794933,0.08,150.84,150.78,27.66479]
[1641488795431,0.08,150.84,150.81,27.66479]
[1641488796230,0.08,150.84,150.78,27.66479]
[1641488796432,4.0,150.83,150.78,27.66479]
[1641488796834,6.85,150.84,150.78,27.66479]
[1641488797033,0.08,150.84,150.73,67.389]
[1641488797434,0.08,150.84,150.74,27.66479]
[1641488798033,63.8477,150.84,150.74,27.66479]
[1641488801843,63.7677,150.84,150.74,27.66479]
[1641488805842,73.9277,150.84,150.74,27.66479]
[1641488806644,63.7677,150.84,150.74,27.66479]
[1641488807844,63.7677,150.84,150.75,4.0]
[1641488808054,63.7677,150.84,150.75,8.661]
[1641488808245,63.7677,150.84,150.75,4.661]
[1641488809147,63.7677,150.84,150.75,8.661]
[1641488809447,63.7677,150.84,150.75,4.661]
[1641488809646,63.7677,150.84,150.8,27.66479]
[1641488809946,0.08,150.85,150.8,27.66479]
[1641488812748,0.08,150.85,150.8,34.28642952]
[1641488814255,0.08,150.85,150.8,38.28642952]
[1641488814454,0.08,150.85,150.8,34.28642952]
[1641488815257,0.08,150.85,150.84,4.68083954]
[1641488817256,0.08,150.85,150.81,1.44760227]
[1641488819663,0.08,150.85,150.84,27.66479]
[1641488820963,0.08,150.85,150.84,33.02979]
[1641488823369,66.5155,150.94,150.84,37.02979]
[1641488823566,66.5155,150.94,150.84,33.02979]
[1641488823766,66.5155,150.94,150.91,27.66479]
[1641488823968,65.85007448,150.96,150.91,27.66479]
[1641488825273,65.85007448,150.96,150.85,65.711]
[1641488825470,4.0,150.94,150.84,90.64359]
[1641488825669,4.0,150.94,150.84,27.66479]
[1641488825870,31.66479,150.94,150.87,27.66479]
[1641488826071,4.0,150.91,150.84,27.66479]
[1641488826370,4.0,150.9,150.81,69.14500109]
[1641488826669,5.084,150.91,150.81,69.14500109]
[1641488827670,65.9717,150.93,150.81,69.14500109]
[1641488827872,27.66479,150.91,150.82,27.66479]
[1641488830875,61.9717,150.93,150.82,27.66479]
[1641488838280,61.9717,150.93,150.86,27.66479]
[1641488838480,61.9717,150.93,150.86,33.88079]
[1641488839080,27.66479,150.94,150.86,33.88079]
[1641488844685,27.66479,150.94,150.86,27.66479]
[1641488844887,4.0,150.92,150.82,27.66479]
[1641488845085,4.0,150.93,150.82,27.66479]
[1641488845285,4.0,150.91,150.82,27.66479]
[1641488845484,4.0,150.92,150.82,27.66479]
[1641488845684,34.68579,150.94,150.82,27.66479]
[1641488845685,45.30896449,150.94,150.82,27.66479]
[1641488846085,32.66479,150.94,150.82,27.66479]
[1641488847185,36.66479,150.94,150.82,27.66479]
[1641488847385,32.66479,150.94,150.82,27.66479]
[1641488848988,32.66479,150.94,150.82,31.66479]
[1641488849389,32.66479,150.94,150.82,27.66479]
[1641488849587,4.0,150.93,150.82,27.66479]
[1641488850488,4.0,150.89,150.82,27.66479]
[1641488850689,4.0,150.9,150.82,27.66479]
[1641488851495,64.32958,150.94,150.82,27.66479]
[1641488851689,4.0,150.93,150.82,27.66479]
[1641488853892,14.03996971,150.89,150.85,4.6799899]
[1641488855693,14.03996971,150.89,150.82,27.66479]
[1641488857394,14.03996971,150.89,150.82,31.66479]
[1641488857595,14.03996971,150.89,150.83,4.0]
[1641488857793,14.03996971,150.89,150.82,27.66479]
[1641488858700,14.03996971,150.89,150.86,27.66479]
[1641488861805,14.03996971,150.89,150.86,33.35479]
[1641488864306,6.971e-05,150.89,150.86,33.35479]
[1641488864709,37.43991922,150.92,150.86,33.35479]
[1641488865109,37.43991922,150.92,150.91,4.67884185]
[1641488865409,3.22996255,150.93,150.91,4.67884185]
[1641488866415,32.66479,150.94,150.87,8.43178534]
[1641488866913,32.66479,150.94,150.88,4.0]
[1641488867114,32.66479,150.94,150.87,8.43178534]
[1641488869516,32.66479,150.94,150.87,12.43178534]
[1641488869715,32.66479,150.94,150.88,4.0]
[1641488870316,32.66479,150.94,150.87,8.43178534]
[1641488870915,32.66479,150.94,150.87,1.4488793]
[1641488871117,32.66479,150.94,150.87,5.19154912]
[1641488871315,32.66479,150.94,150.87,9.19154912]
[1641488871517,32.66479,150.94,150.88,4.0]
[1641488871718,32.66479,150.94,150.87,5.19154912]
[1641488873217,37.79479,150.94,150.87,5.19154912]
[1641488873820,37.79479,150.94,150.87,1.4488793]
[1641488874319,5.0,150.94,150.87,5.19157262]
[1641488874519,5.0,150.94,150.91,27.66479]
[1641488875619,37.43991922,150.98,150.91,27.66479]
[1641488875620,37.43991922,150.98,150.93,6.61594443]
[1641488876123,37.43991922,150.98,150.94,4.0]
[1641488876320,56.15987883,151.02,150.94,8.503]
[1641488876523,56.15987883,151.02,150.98,27.66479]
[1641488878526,56.15987883,151.02,151.01,27.66479]
[1641488879127,14.91652904,151.02,151.01,37.46879]
[1641488879330,93.6167908,151.07,151.01,33.46879]
[1641488880629,93.6167908,151.07,151.06,27.66479]
[1641488883231,4.64636016,151.08,151.06,27.66479]
[1641488883431,4.64636016,151.08,151.06,20.18576221]
[1641488887137,3.20179625,151.09,151.06,20.18576221]
[1641488887741,3.20179625,151.09,151.05,27.66479]
[1641488888841,4.0,151.06,151.01,4.64636016]
[1641488889041,9.862,151.06,151.01,4.64636016]
[1641488889441,5.862,151.06,151.01,4.64636016]
[1641488889642,9.862,151.06,151.01,4.64636016]
[1641488889843,5.862,151.06,151.01,4.64636016]
[1641488890042,9.862,151.06,151.01,4.64636016]
[1641488890244,5.862,151.06,151.01,4.64636016]
[1641488890445,9.81817841,151.09,151.01,4.64636016]
[1641488890645,27.66479,151.05,151.01,4.64636016]
[1641488892644,95.44379,151.08,151.01,4.64636016]
[1641488892845,99.44379,151.08,151.01,4.64636016]
[1641488895947,4.0,151.07,151.01,4.64636016]
[1641488896148,5.17,151.07,151.01,4.64636016]
[1641488897149,4.0,151.05,151.01,4.64636016]
[1641488897548,5.17,151.07,151.01,4.64636016]
[1641488897748,4.0,151.07,151.01,4.64636016]
[1641488900653,4.0,151.06,151.01,4.64636016]
[1641488900854,95.44379,151.08,151.01,4.64636016]
[1641488910260,4.67550923,151.05,151.04,4.64636016]
[1641488911962,4.67550923,151.05,151.01,14.0265277]
[1641488914864,4.67550923,151.05,151.03,27.66479]
[1641488916067,3.21964598,151.07,151.03,27.66479]
[1641488917469,65.2019,151.11,151.03,27.66479]
[1641488920472,27.66479,151.12,151.03,31.66479]
[1641488922775,27.66479,151.12,151.03,27.66479]
[1641488924374,27.66479,151.12,151.03,31.66479]
[1641488924675,27.66479,151.12,151.03,27.66479]
[1641488925477,27.66479,151.12,151.03,31.66479]
[1641488925778,27.66479,151.12,151.03,27.66479]
[1641488928780,6.61222601,151.19,151.1,27.66479]
[1641488928981,27.66479,151.18,151.1,27.66479]
[1641488929779,4.0,151.17,151.1,27.66479]
[1641488930382,4.0,151.16,151.1,27.66479]
[1641488930579,4.0,151.17,151.1,27.66479]
[1641488932583,4.0,151.17,151.09,64.3118]
[1641488934683,4.0,151.16,151.08,27.66479]
[1641488934883,4.0,151.17,151.08,27.66479]
[1641488935282,4.0,151.16,151.08,27.66479]
[1641488935484,4.0,151.17,151.08,27.66479]
[1641488936084,31.66479,151.18,151.08,27.66479]
[1641488936486,4.0,151.17,151.08,27.66479]
[1641488936686,31.66479,151.18,151.08,27.66479]
[1641488936886,31.66479,151.18,151.08,55.32958]
[1641488937488,4.0,151.17,151.08,55.32958]
[1641488938088,27.66479,151.18,151.08,55.32958]
[1641488940789,27.66479,151.18,151.09,6.60894852]
[1641488940990,27.66479,151.18,151.11,27.66479]
[1641488942189,80.079,151.2,151.11,27.66479]
[1641488942190,69.979,151.2,151.11,27.66479]
[1641488942392,65.979,151.2,151.11,27.66479]
[1641488942994,65.979,151.2,151.14,27.66479]
[1641488944195,27.66479,151.21,151.14,32.62679]
[1641488944396,27.66479,151.21,151.15,4.0]
[1641488944596,27.66479,151.21,151.14,32.62679]
[1641488945096,27.66479,151.21,151.14,36.62679]
[1641488945300,27.66479,151.21,151.14,32.62679]
[1641488945702,27.66479,151.24,151.14,32.62679]
[1641488945901,27.66479,151.24,151.17,6.60545611]
[1641488946900,65.7248,151.29,151.18,27.66479]
[1641488947100,61.7248,151.29,151.18,32.95079]
[1641488947903,4.0,151.3,151.18,32.95079]
[1641488948103,4.0,151.29,151.18,27.66479]
[1641488948305,4.0,151.27,151.18,27.66479]
[1641488948804,4.0,151.29,151.18,27.66479]
[1641488949006,4.0,151.29,151.21,27.66479]
[1641488949205,4.0,151.3,151.21,27.66479]
[1641488949505,4.0,151.29,151.21,27.66479]
[1641488949904,4.0,151.3,151.21,27.66479]
[1641488950305,4.0,151.29,151.21,27.66479]
[1641488950807,4.0,151.28,151.21,27.66479]
[1641488951306,4.0,151.3,151.21,27.66479]
[1641488951706,4.0,151.29,151.21,27.66479]
[1641488951905,4.0,151.3,151.21,27.66479]
[1641488952105,4.0,151.29,151.21,27.66479]
[1641488952306,4.0,151.28,151.21,27.66479]
[1641488952906,4.0,151.25,151.18,27.66479]
[1641488953106,4.0,151.24,151.18,27.66479]
[1641488953306,4.781,151.25,151.18,27.66479]
[1641488953707,4.0,151.24,151.18,27.66479]
[1641488953907,4.0,151.28,151.18,27.66479]
[1641488954907,4.0,151.27,151.21,27.66479]
[1641488955507,4.0,151.28,151.21,27.66479]
[1641488955807,69.5101,151.29,151.21,27.66479]
[1641488957611,65.5101,151.29,151.21,27.66479]
[1641488958212,4.0,151.27,151.21,27.66479]
[1641488958412,65.5101,151.29,151.21,27.66479]
[1641488960115,65.5101,151.29,151.21,34.26828325]
[1641488961115,65.5101,151.29,151.24,27.66479]
[1641488961313,31.66479,151.33,151.24,32.07379]
[1641488961516,62.7575,151.32,151.24,32.07379]
[1641488961814,4.0,151.31,151.24,32.07379]
[1641488962014,62.7575,151.32,151.24,32.07379]
[1641488962415,66.7575,151.32,151.24,32.07379]
[1641488962815,62.7575,151.32,151.24,32.07379]
[1641488963017,66.7575,151.32,151.24,32.07379]
[1641488963818,66.7575,151.32,151.24,27.66479]
[1641488964418,62.7575,151.32,151.24,27.66479]
[1641488964618,27.66479,151.33,151.24,27.66479]
[1641488964619,65.6956,151.36,151.25,6.60174946]
[1641488964820,4.0,151.37,151.25,12.87474946]
[1641488965020,66.3888,151.36,151.29,27.66479]
[1641488965218,66.3888,151.36,151.29,32.48579]
[1641488965418,4.0,151.34,151.29,32.48579]
[1641488965617,66.3888,151.36,151.29,32.48579]
[1641488969227,62.3888,151.36,151.29,32.48579]
[1641488969826,4.0,151.37,151.29,32.48579]
[1641488970226,67.3975,151.39,151.29,32.48579]
[1641488970426,67.3975,151.39,151.29,99.36909]
[1641488970626,4.0,151.39,151.29,99.36909]
[1641488971029,4.0,151.39,151.32,27.66479]
[1641488971529,31.66479,151.4,151.32,27.66479]
[1641488972031,4.0,151.39,151.32,27.66479]
[1641488972430,69.0792,151.39,151.32,27.66479]
[1641488973231,65.0792,151.39,151.32,27.66479]
[1641488973432,69.0792,151.39,151.32,27.66479]
[1641488975837,65.0792,151.39,151.32,27.66479]
[1641488977538,69.0792,151.39,151.32,27.66479]
[1641488977937,65.0792,151.39,151.32,27.66479]
[1641488978137,4.0,151.4,151.32,33.00079]
[1641488978637,62.0818,151.43,151.32,33.00079]
[1641488978837,62.0818,151.43,151.33,64.4058]
[1641488979241,62.0818,151.43,151.35,27.66479]
[1641488981240,62.0818,151.43,151.39,27.66479]
[1641488981439,27.66479,151.46,151.39,27.66479]
[1641488981639,66.4995,151.48,151.39,27.66479]
[1641488982941,4.0,151.47,151.39,27.66479]
[1641488983141,4.0,151.44,151.35,27.66479]
[1641488983840,31.66479,151.46,151.35,27.66479]
[1641488984040,4.0,151.45,151.35,27.66479]
[1641488984239,27.66479,151.46,151.35,27.66479]
[1641488984440,62.4995,151.48,151.35,27.66479]
[1641488984943,66.4995,151.48,151.35,27.66479]
[1641488985144,4.0,151.47,151.4,27.66479]
[1641488985441,4.0,151.46,151.4,27.66479]
[1641488985940,4.0,151.47,151.4,27.66479]
[1641488986841,62.4995,151.48,151.4,27.66479]
[1641488986842,4.0,151.46,151.4,27.66479]
[1641488988042,4.0,151.43,151.35,27.66479]
[1641488988241,4.0,151.44,151.35,27.66479]
[1641488988842,62.4995,151.48,151.35,27.66479]
[1641488989043,4.0,151.46,151.35,27.66479]
[1641488989344,4.0,151.45,151.35,27.66479]
[1641488989543,4.0,151.47,151.35,27.66479]
[1641488989742,73.09885326,151.48,151.35,27.66479]
[1641488990346,4.0,151.47,151.35,27.66479]
[1641488990744,4.0,151.47,151.35,34.26240166]
[1641488991146,4.0,151.47,151.39,27.66479]
[1641488992348,4.0,151.46,151.39,27.66479]
[1641488993049,4.0,151.45,151.39,27.66479]
[1641488993548,4.0,151.43,151.39,27.66479]
[1641488993749,4.0,151.43,151.35,27.66479]
[1641488994350,4.0,151.44,151.35,27.66479]
[1641488995055,4.0,151.45,151.35,27.66479]
[1641488995853,4.0,151.46,151.35,27.66479]
[1641488996054,4.0,151.45,151.35,27.66479]
[1641488997455,4.0,151.44,151.35,27.66479]
[1641488997854,4.0,151.45,151.35,27.66479]
[1641488998056,4.0,151.44,151.35,27.66479]
[1641488998255,4.0,151.42,151.35,27.66479]
[1641488998456,4.0,151.44,151.35,27.66479]
[1641488998656,4.0,151.42,151.35,27.66479]
[1641489000157,62.43,151.44,151.35,27.66479]
[1641489000959,4.0,151.43,151.35,27.66479]
[1641489001160,31.66479,151.42,151.35,27.66479]
[1641489001358,31.66479,151.42,151.33,92.07059]
[1641489001561,4.0,151.41,151.33,92.07059]
[1641489001759,4.0,151.4,151.33,92.07059]
[1641489001960,4.0,151.4,151.33,27.66479]
[1641489002160,4.0,151.41,151.33,27.66479]
[1641489002360,4.0,151.39,151.33,27.66479]
[1641489002561,8.723,151.39,151.33,27.66479]
[1641489002762,4.0,151.37,151.27,9.78]
[1641489002963,4.0,151.38,151.27,9.78]
[1641489003163,27.66479,151.37,151.27,16.38109578]
[1641489003362,27.66479,151.37,151.27,6.60109578]
[1641489004362,27.66479,151.37,151.25,27.66479]
[1641489005164,27.66479,151.34,151.25,27.66479]
[1641489005365,33.73379,151.34,151.25,27.66479]
[1641489005764,4.0,151.33,151.25,27.66479]
[1641489006064,62.3025,151.33,151.25,27.66479]
[1641489007265,33.73379,151.34,151.25,27.66479]
[1641489007564,6.069,151.34,151.25,27.66479]
[1641489007764,63.0873,151.36,151.25,27.66479]
[1641489008165,27.66479,151.37,151.25,27.66479]
[1641489008364,27.66479,151.37,151.27,6.60109578]
[1641489008964,27.66479,151.37,151.25,27.66479]
[1641489009765,27.66479,151.37,151.25,31.66479]
[1641489009967,27.66479,151.37,151.27,10.60087792]
[1641489010166,27.66479,151.37,151.27,6.60087792]
[1641489010567,27.66479,151.37,151.27,10.60087792]
[1641489010767,27.66479,151.37,151.27,6.60087792]
[1641489011168,65.0575,151.39,151.3,27.66479]
[1641489012970,69.0575,151.39,151.3,27.66479]
[1641489013171,4.0,151.37,151.28,61.8663]
[1641489013370,27.66479,151.36,151.28,61.8663]
[1641489014970,27.66479,151.36,151.25,27.66479]
[1641489015170,67.3775,151.35,151.25,90.63959]
[1641489015470,27.66479,151.33,151.25,90.63959]
[1641489016270,67.3775,151.35,151.25,90.63959]
[1641489017674,67.3775,151.35,151.25,97.24133946]
[1641489018674,27.66479,151.38,151.25,97.24133946]
[1641489019076,27.66479,151.38,151.26,3.73281162]
[1641489019275,27.66479,151.35,151.26,3.73281162]
[1641489019476,32.98479,151.35,151.25,97.24133946]
[1641489019675,32.98479,151.35,151.25,90.63959]
[1641489020077,65.0699,151.34,151.25,90.63959]
[1641489021275,27.66479,151.32,151.25,90.63959]
[1641489023176,31.66479,151.32,151.25,90.63959]
[1641489023475,4.0,151.27,151.22,9.88]
[1641489023677,4.0,151.31,151.21,27.66479]
[1641489024276,4.0,151.3,151.21,27.66479]
[1641489024676,32.72279,151.32,151.21,27.66479]
[1641489025076,4.0,151.31,151.21,27.66479]
[1641489025278,27.66479,151.28,151.21,27.66479]
[1641489027080,31.66479,151.28,151.21,27.66479]
[1641489027279,27.66479,151.28,151.21,27.66479]
[1641489027483,31.66479,151.28,151.21,27.66479]
[1641489027683,38.27286507,151.28,151.21,27.66479]
[1641489028082,38.27286507,151.28,151.15,3.73507789]
[1641489028483,43.78286507,151.28,151.15,3.73507789]
[1641489028884,43.78286507,151.28,151.16,63.2301]
[1641489029282,27.66479,151.25,151.16,63.2301]
[1641489029684,4.0,151.24,151.15,3.73507789]
[1641489029886,68.2072,151.24,151.15,3.73507789]
[1641489030287,68.2072,151.24,151.23,4.63709331]
[1641489030487,4.825,151.24,151.19,13.91127992]
[1641489031192,27.66479,151.25,151.13,62.9887]
[1641489031489,27.66479,151.25,151.16,27.66479]
[1641489031689,27.66479,151.25,151.17,4.0]
[1641489031889,27.66479,151.28,151.17,10.60545611]
[1641489032091,27.66479,151.28,151.19,6.60436549]
[1641489032390,27.66479,151.28,151.18,10.60480169]
[1641489032591,27.66479,151.28,151.18,6.60480169]
[1641489033291,27.66479,151.28,151.19,27.66479]
[1641489037893,65.1335,151.3,151.19,32.38279]
[1641489040299,65.1335,151.3,151.19,27.66479]
[1641489042700,4.0,151.29,151.19,27.66479]
[1641489042902,65.1335,151.3,151.19,27.66479]
[1641489043501,27.66479,151.29,151.19,27.66479]